[Event "Titled Tuesday Blitz August 22 Early 2023"]
[White "Efremov, Vladislav"]
[Black "le-castor-faineant"]
[WhiteFideId "44159935"]
[WhiteElo "2408"]
[BlackElo "2224"]
[Result "1-0"]
[Round "3"]
[TimeControl "180+1"]
[Date "2023.08.22"]
[WhiteClock "0:02:12"]
[BlackClock "0:00:13"]
[Board "242"]

1. d4 {[%clk 0:02:59]}  Nf6 {[%clk 0:02:55]} 2. c4 {[%clk 0:02:59]}  g6 {[%clk 0:02:55]} 3. Nc3 {[%clk 0:02:59]}  Bg7 {[%clk 0:02:55]} 4. e4 {[%clk 0:02:59]}  d6 {[%clk 0:02:56]} 5. f3 {[%clk 0:02:59]}  O-O {[%clk 0:02:55]} 6. Be3 {[%clk 0:03:00]}  e5 {[%clk 0:02:55]} 7. dxe5 {[%clk 0:02:59]}  dxe5 {[%clk 0:02:54]} 8. Qxd8 {[%clk 0:03:00]}  Rxd8 {[%clk 0:02:55]} 9. Be2 {[%clk 0:02:59]}  c6 {[%clk 0:02:53]} 10. Kf2 {[%clk 0:02:57]}  a5 {[%clk 0:02:53]} 11. g4 {[%clk 0:02:57]}  Be6 {[%clk 0:02:53]} 12. Nh3 {[%clk 0:02:57]}  Nbd7 {[%clk 0:02:52]} 13. Ng5 {[%clk 0:02:57]}  Re8 {[%clk 0:02:46]} 14. Rhd1 {[%clk 0:02:57]}  h6 {[%clk 0:02:43]} 15. Nxe6 {[%clk 0:02:57]}  Rxe6 {[%clk 0:02:44]} 16. h4 {[%clk 0:02:55]}  Nf8 {[%clk 0:02:41]} 17. g5 {[%clk 0:02:55]}  hxg5 {[%clk 0:02:41]} 18. hxg5 {[%clk 0:02:56]}  Nh5 {[%clk 0:02:41]} 19. Rd2 {[%clk 0:02:54]}  Nf4 {[%clk 0:02:37]} 20. Rad1 {[%clk 0:02:53]}  Re7 {[%clk 0:02:30]} 21. Bf1 {[%clk 0:02:52]}  N8e6 {[%clk 0:02:29]} 22. Rd7 {[%clk 0:02:50]}  Rae8 {[%clk 0:02:28]} 23. Rxe7 {[%clk 0:02:48]}  Rxe7 {[%clk 0:02:27]} 24. Bb6 {[%clk 0:02:49]}  Nxg5 {[%clk 0:02:16]} 25. Bd8 {[%clk 0:02:49]}  Bf6 {[%clk 0:01:51]} 26. Bxe7 {[%clk 0:02:45]}  Bxe7 {[%clk 0:01:52]} 27. Kg3 {[%clk 0:02:42]}  Bc5 {[%clk 0:01:51]} 28. Rd7 {[%clk 0:02:38]}  b6 {[%clk 0:01:48]} 29. Ne2 {[%clk 0:02:33]}  Nge6 {[%clk 0:01:44]} 30. a3 {[%clk 0:02:27]}  Nxe2+ {[%clk 0:01:43]} 31. Bxe2 {[%clk 0:02:28]}  Bd4 {[%clk 0:01:43]} 32. b4 {[%clk 0:02:27]}  axb4 {[%clk 0:01:44]} 33. axb4 {[%clk 0:02:27]}  Bc3 {[%clk 0:01:42]} 34. Rd6 {[%clk 0:02:24]}  Bxb4 {[%clk 0:01:40]} 35. Rxc6 {[%clk 0:02:24]}  Bc5 {[%clk 0:01:41]} 36. Rc8+ {[%clk 0:02:24]}  Kg7 {[%clk 0:01:40]} 37. Bd1 {[%clk 0:02:24]}  Nf4 {[%clk 0:01:37]} 38. Ba4 {[%clk 0:02:20]}  Ne2+ {[%clk 0:01:32]} 39. Kg2 {[%clk 0:02:20]}  Nf4+ {[%clk 0:01:30]} 40. Kf1 {[%clk 0:02:20]}  Ne6 {[%clk 0:01:19]} 41. Bd7 {[%clk 0:02:18]}  Nd4 {[%clk 0:01:18]} 42. Kg2 {[%clk 0:02:15]}  Kf6 {[%clk 0:00:26]} 43. Rc7 {[%clk 0:02:12]}  Ke7 {[%clk 0:00:24]} 44. Ba4+ {[%clk 0:02:09]}  Kf6 {[%clk 0:00:23]} 45. Be8 {[%clk 0:02:08]}  Nb3 {[%clk 0:00:18]} 46. Rxf7+ {[%clk 0:02:07]}  Kg5 {[%clk 0:00:18]} 47. Rg7 {[%clk 0:02:06]}  Nd2 {[%clk 0:00:16]} 48. Rxg6+ {[%clk 0:02:06]}  Kf4 {[%clk 0:00:16]} 49. Rg4+ {[%clk 0:02:06]}  Ke3 {[%clk 0:00:17]} 50. Bb5 {[%clk 0:02:06]}  Nxf3 {[%clk 0:00:17]} 51. Rg3 {[%clk 0:02:06]}  Kxe4 {[%clk 0:00:15]} 52. Rxf3 {[%clk 0:02:07]}  Kd4 {[%clk 0:00:15]} 53. Kf1 {[%clk 0:02:06]}  e4 {[%clk 0:00:16]} 54. Rh3 {[%clk 0:02:07]}  e3 {[%clk 0:00:15]} 55. Ke2 {[%clk 0:02:08]}  Kc3 {[%clk 0:00:15]} 56. Rxe3+ {[%clk 0:02:06]}  Bxe3 {[%clk 0:00:15]} 57. Kxe3 {[%clk 0:02:07]}  Kb4 {[%clk 0:00:15]} 58. Kd4 {[%clk 0:02:08]}  Ka5 {[%clk 0:00:15]} 59. Kd5 {[%clk 0:02:08]}  Kb4 {[%clk 0:00:15]} 60. Kc6 {[%clk 0:02:09]}  Ka5 {[%clk 0:00:15]} 61. Kb7 {[%clk 0:02:10]}  Kb4 {[%clk 0:00:15]} 62. Kxb6 {[%clk 0:02:11]}  Kc3 {[%clk 0:00:13]} 63. c5 {[%clk 0:02:12]} 1-0


[Site "https://www.chess.com"]

[Event "Titled Tuesday Blitz August 22 Early 2023"]
[White "KorolDimitriy75"]
[Black "Andrade Truyol, Geiner Jose"]
[BlackFideId "4431987"]
[WhiteElo "2398"]
[BlackElo "2212"]
[Result "1-0"]
[Round "3"]
[TimeControl "180+1"]
[Date "2023.08.22"]
[WhiteClock "0:00:57"]
[BlackClock "0:00:34"]
[Board "247"]

1. d4 {[%clk 0:03:00]}  Nf6 {[%clk 0:02:57]} 2. c4 {[%clk 0:03:01]}  d6 {[%clk 0:02:58]} 3. Nc3 {[%clk 0:03:01]}  Nbd7 {[%clk 0:02:58]} 4. e4 {[%clk 0:03:01]}  e5 {[%clk 0:02:59]} 5. Nf3 {[%clk 0:03:02]}  c6 {[%clk 0:02:56]} 6. Be2 {[%clk 0:03:02]}  Be7 {[%clk 0:02:56]} 7. O-O {[%clk 0:03:02]}  O-O {[%clk 0:02:57]} 8. Re1 {[%clk 0:03:01]}  Qc7 {[%clk 0:02:56]} 9. Rb1 {[%clk 0:03:01]}  a6 {[%clk 0:02:51]} 10. b4 {[%clk 0:03:01]}  b5 {[%clk 0:02:51]} 11. a4 {[%clk 0:03:01]}  bxc4 {[%clk 0:02:49]} 12. Bxc4 {[%clk 0:03:02]}  Nb6 {[%clk 0:02:41]} 13. Be2 {[%clk 0:02:20]}  Bg4 {[%clk 0:02:37]} 14. h3 {[%clk 0:02:14]}  Bxf3 {[%clk 0:02:37]} 15. Bxf3 {[%clk 0:02:15]}  Rfd8 {[%clk 0:01:46]} 16. a5 {[%clk 0:01:57]}  Nbd7 {[%clk 0:01:40]} 17. Be3 {[%clk 0:01:54]}  Qb7 {[%clk 0:01:20]} 18. Qc2 {[%clk 0:01:38]}  Rac8 {[%clk 0:01:19]} 19. Red1 {[%clk 0:01:33]}  Nf8 {[%clk 0:01:18]} 20. Na4 {[%clk 0:01:17]}  exd4 {[%clk 0:00:50]} 21. Bxd4 {[%clk 0:01:17]}  Ne6 {[%clk 0:00:50]} 22. Be3 {[%clk 0:01:17]}  c5 {[%clk 0:00:34]} 23. e5 {[%clk 0:00:57]} 1-0


[Site "https://www.chess.com"]

[Event "Titled Tuesday Blitz August 22 Early 2023"]
[White "Delorme, Axel"]
[Black "Lee, Addison"]
[WhiteFideId "632023"]
[BlackFideId "30924570"]
[WhiteElo "2398"]
[BlackElo "2209"]
[Result "1-0"]
[Round "3"]
[TimeControl "180+1"]
[Date "2023.08.22"]
[WhiteClock "0:02:35"]
[BlackClock "0:00:00"]
[Board "248"]

1. d4 {[%clk 0:02:59]}  Nf6 {[%clk 0:02:44]} 2. Nc3 {[%clk 0:02:58]}  c5 {[%clk 0:02:44]} 3. d5 {[%clk 0:02:58]}  e5 {[%clk 0:02:44]} 4. dxe6 {[%clk 0:02:58]}  fxe6 {[%clk 0:02:41]} 5. e4 {[%clk 0:02:58]}  d5 {[%clk 0:02:42]} 6. exd5 {[%clk 0:02:59]}  exd5 {[%clk 0:02:41]} 7. Nf3 {[%clk 0:02:59]}  Be7 {[%clk 0:02:41]} 8. Bb5+ {[%clk 0:02:58]}  Bd7 {[%clk 0:02:38]} 9. Bxd7+ {[%clk 0:02:58]}  Qxd7 {[%clk 0:02:38]} 10. Bg5 {[%clk 0:02:59]}  d4 {[%clk 0:01:29]} 11. Bxf6 {[%clk 0:02:56]}  Bxf6 {[%clk 0:01:27]} 12. Ne4 {[%clk 0:02:57]}  Be7 {[%clk 0:01:25]} 13. O-O {[%clk 0:02:56]}  O-O {[%clk 0:01:23]} 14. c3 {[%clk 0:02:56]}  Nc6 {[%clk 0:01:22]} 15. cxd4 {[%clk 0:02:51]}  Nxd4 {[%clk 0:01:19]} 16. Nxd4 {[%clk 0:02:50]}  cxd4 {[%clk 0:01:18]} 17. Qd3 {[%clk 0:02:47]}  Rad8 {[%clk 0:01:09]} 18. Rfd1 {[%clk 0:02:46]}  Qd5 {[%clk 0:01:00]} 19. b3 {[%clk 0:02:43]}  Rfe8 {[%clk 0:00:53]} 20. f3 {[%clk 0:02:43]}  Bc5 {[%clk 0:00:53]} 21. Rac1 {[%clk 0:02:43]}  Bb6 {[%clk 0:00:52]} 22. Rc4 {[%clk 0:02:43]}  Rc8 {[%clk 0:00:46]} 23. Rdc1 {[%clk 0:02:43]}  Rxc4 {[%clk 0:00:45]} 24. Qxc4 {[%clk 0:02:43]}  Qxc4 {[%clk 0:00:42]} 25. Rxc4 {[%clk 0:02:44]}  d3+ {[%clk 0:00:42]} 26. Kf1 {[%clk 0:02:44]}  Rd8 {[%clk 0:00:33]} 27. Ke1 {[%clk 0:02:44]}  Be3 {[%clk 0:00:31]} 28. Kd1 {[%clk 0:02:39]}  Rd7 {[%clk 0:00:30]} 29. Ng3 {[%clk 0:02:40]}  g6 {[%clk 0:00:19]} 30. Nf1 {[%clk 0:02:39]}  Bb6 {[%clk 0:00:17]} 31. Kd2 {[%clk 0:02:37]}  Kf8 {[%clk 0:00:00]} 32. b4 {[%clk 0:02:35]} 1-0


[Site "https://www.chess.com"]

[Event "Titled Tuesday Blitz August 22 Early 2023"]
[White "Melikhov, Evgeny V."]
[Black "Larina, Maria"]
[WhiteFideId "4122046"]
[BlackFideId "24113182"]
[WhiteElo "2398"]
[BlackElo "2196"]
[Result "1-0"]
[Round "3"]
[TimeControl "180+1"]
[Date "2023.08.22"]
[WhiteClock "0:00:31"]
[BlackClock "0:00:10"]
[Board "249"]

1. d4 {[%clk 0:03:00]}  f5 {[%clk 0:02:59]} 2. e4 {[%clk 0:03:01]}  fxe4 {[%clk 0:02:58]} 3. Nc3 {[%clk 0:03:01]}  Nf6 {[%clk 0:02:58]} 4. Bg5 {[%clk 0:03:01]}  Nc6 {[%clk 0:02:59]} 5. d5 {[%clk 0:02:56]}  Ne5 {[%clk 0:02:58]} 6. Qe2 {[%clk 0:02:53]}  d6 {[%clk 0:02:50]} 7. O-O-O {[%clk 0:02:37]}  Bg4 {[%clk 0:02:43]} 8. f3 {[%clk 0:02:36]}  exf3 {[%clk 0:02:44]} 9. Nxf3 {[%clk 0:02:31]}  Qd7 {[%clk 0:02:37]} 10. Nxe5 {[%clk 0:02:22]}  Bxe2 {[%clk 0:02:25]} 11. Nxd7 {[%clk 0:02:21]}  Bxd1 {[%clk 0:02:24]} 12. Nxf6+ {[%clk 0:02:20]}  exf6 {[%clk 0:02:23]} 13. Bb5+ {[%clk 0:02:16]}  Kf7 {[%clk 0:02:15]} 14. Bd2 {[%clk 0:02:01]}  Bg4 {[%clk 0:02:12]} 15. h3 {[%clk 0:01:54]}  Bf5 {[%clk 0:02:01]} 16. g4 {[%clk 0:01:54]}  Bg6 {[%clk 0:02:01]} 17. Re1 {[%clk 0:01:42]}  a6 {[%clk 0:02:01]} 18. Bd7 {[%clk 0:01:41]}  Be7 {[%clk 0:01:54]} 19. Be6+ {[%clk 0:01:38]}  Kf8 {[%clk 0:01:54]} 20. Ne2 {[%clk 0:01:35]}  Rd8 {[%clk 0:01:30]} 21. Nf4 {[%clk 0:01:34]}  c6 {[%clk 0:01:22]} 22. dxc6 {[%clk 0:01:27]}  bxc6 {[%clk 0:01:21]} 23. Bc4 {[%clk 0:01:27]}  Bf7 {[%clk 0:01:17]} 24. Ne6+ {[%clk 0:01:18]}  Bxe6 {[%clk 0:01:16]} 25. Bxe6 {[%clk 0:01:19]}  d5 {[%clk 0:01:12]} 26. g5 {[%clk 0:01:16]}  Rd6 {[%clk 0:01:00]} 27. gxf6 {[%clk 0:01:12]}  Bxf6 {[%clk 0:00:58]} 28. Bb4 {[%clk 0:01:12]}  Be7 {[%clk 0:00:57]} 29. Bxd6 {[%clk 0:01:09]}  Bxd6 {[%clk 0:00:58]} 30. Bd7 {[%clk 0:01:09]}  Kf7 {[%clk 0:00:45]} 31. Bxc6 {[%clk 0:01:09]}  d4 {[%clk 0:00:45]} 32. Bd5+ {[%clk 0:01:09]}  Kf8 {[%clk 0:00:41]} 33. Re6 {[%clk 0:01:07]}  Bf4+ {[%clk 0:00:38]} 34. Kd1 {[%clk 0:01:07]}  g5 {[%clk 0:00:33]} 35. Rxa6 {[%clk 0:01:05]}  Kg7 {[%clk 0:00:33]} 36. Ke2 {[%clk 0:00:53]}  h5 {[%clk 0:00:32]} 37. Be4 {[%clk 0:00:49]}  Re8 {[%clk 0:00:31]} 38. Kd3 {[%clk 0:00:48]}  Be3 {[%clk 0:00:30]} 39. a4 {[%clk 0:00:44]}  Rb8 {[%clk 0:00:29]} 40. b3 {[%clk 0:00:44]}  Rc8 {[%clk 0:00:20]} 41. Rc6 {[%clk 0:00:40]}  Rb8 {[%clk 0:00:14]} 42. a5 {[%clk 0:00:39]}  Rb5 {[%clk 0:00:11]} 43. a6 {[%clk 0:00:36]}  Ra5 {[%clk 0:00:12]} 44. Rc7+ {[%clk 0:00:36]}  Kf6 {[%clk 0:00:11]} 45. a7 {[%clk 0:00:36]}  g4 {[%clk 0:00:10]} 46. hxg4 {[%clk 0:00:35]}  hxg4 {[%clk 0:00:10]} 47. a8=Q {[%clk 0:00:35]}  Rxa8 {[%clk 0:00:11]} 48. Bxa8 {[%clk 0:00:35]}  g3 {[%clk 0:00:12]} 49. Rd7 {[%clk 0:00:32]}  Bf2 {[%clk 0:00:12]} 50. Rxd4 {[%clk 0:00:31]}  Bxd4 {[%clk 0:00:11]} 51. Kxd4 {[%clk 0:00:32]}  Kf5 {[%clk 0:00:11]} 52. b4 {[%clk 0:00:31]}  Kf4 {[%clk 0:00:10]} 53. b5 {[%clk 0:00:31]} 1-0


[Site "https://www.chess.com"]

[Event "Titled Tuesday Blitz August 22 Early 2023"]
[White "Bogaudinov, Rushan"]
[Black "Johnson, Ben"]
[WhiteFideId "4129288"]
[BlackFideId "2010917"]
[WhiteElo "2394"]
[BlackElo "2139"]
[Result "1-0"]
[Round "3"]
[TimeControl "180+1"]
[Date "2023.08.22"]
[WhiteClock "0:00:18"]
[BlackClock "0:00:03"]
[Board "251"]

1. d4 {[%clk 0:02:39]}  Nf6 {[%clk 0:02:58]} 2. Nf3 {[%clk 0:02:40]}  d5 {[%clk 0:02:56]} 3. g3 {[%clk 0:02:41]}  c5 {[%clk 0:02:50]} 4. Bg2 {[%clk 0:02:40]}  e6 {[%clk 0:02:42]} 5. O-O {[%clk 0:02:40]}  Nc6 {[%clk 0:02:43]} 6. c3 {[%clk 0:02:34]}  Be7 {[%clk 0:02:43]} 7. dxc5 {[%clk 0:02:33]}  Bxc5 {[%clk 0:02:43]} 8. b4 {[%clk 0:02:34]}  Bd6 {[%clk 0:02:39]} 9. a3 {[%clk 0:02:35]}  a6 {[%clk 0:02:37]} 10. Bb2 {[%clk 0:02:36]}  O-O {[%clk 0:02:37]} 11. Nbd2 {[%clk 0:02:34]}  e5 {[%clk 0:02:34]} 12. Qc2 {[%clk 0:02:23]}  e4 {[%clk 0:02:34]} 13. Nd4 {[%clk 0:02:20]}  Bg4 {[%clk 0:02:30]} 14. h3 {[%clk 0:02:17]}  Nxd4 {[%clk 0:02:28]} 15. cxd4 {[%clk 0:02:17]}  Bxe2 {[%clk 0:02:28]} 16. Rfc1 {[%clk 0:02:12]}  Rc8 {[%clk 0:02:23]} 17. Qb3 {[%clk 0:02:06]}  b5 {[%clk 0:02:19]} 18. Nf1 {[%clk 0:02:01]}  Bc4 {[%clk 0:02:13]} 19. Qd1 {[%clk 0:01:57]}  h5 {[%clk 0:02:04]} 20. Ne3 {[%clk 0:01:45]}  h4 {[%clk 0:02:03]} 21. g4 {[%clk 0:01:45]}  Bf4 {[%clk 0:01:57]} 22. a4 {[%clk 0:01:35]}  Bd3 {[%clk 0:01:50]} 23. Rc5 {[%clk 0:01:33]}  Rxc5 {[%clk 0:01:45]} 24. bxc5 {[%clk 0:01:29]}  Qc7 {[%clk 0:01:32]} 25. axb5 {[%clk 0:01:26]}  Bxb5 {[%clk 0:01:18]} 26. Bc3 {[%clk 0:01:17]}  Nh7 {[%clk 0:01:00]} 27. Nxd5 {[%clk 0:01:10]}  Qb8 {[%clk 0:00:50]} 28. Bxe4 {[%clk 0:01:07]}  Ng5 {[%clk 0:00:46]} 29. Bg2 {[%clk 0:01:06]}  Bh2+ {[%clk 0:00:44]} 30. Kh1 {[%clk 0:01:05]}  Kh8 {[%clk 0:00:41]} 31. Qd2 {[%clk 0:00:49]}  f6 {[%clk 0:00:40]} 32. f4 {[%clk 0:00:42]}  Bc6 {[%clk 0:00:20]} 33. Kxh2 {[%clk 0:00:36]}  Ne6 {[%clk 0:00:19]} 34. Rf1 {[%clk 0:00:30]}  Qb7 {[%clk 0:00:18]} 35. Nb4 {[%clk 0:00:25]}  Bxg2 {[%clk 0:00:17]} 36. Qxg2 {[%clk 0:00:25]}  Qb5 {[%clk 0:00:16]} 37. Re1 {[%clk 0:00:23]}  Qc4 {[%clk 0:00:16]} 38. Nd5 {[%clk 0:00:20]}  Rd8 {[%clk 0:00:05]} 39. Rxe6 {[%clk 0:00:19]}  Rxd5 {[%clk 0:00:05]} 40. Re8+ {[%clk 0:00:19]}  Kh7 {[%clk 0:00:05]} 41. Qe4+ {[%clk 0:00:19]}  g6 {[%clk 0:00:03]} 42. Qe7+ {[%clk 0:00:18]}  Kh6 {[%clk 0:00:03]} 43. Rh8# {[%clk 0:00:18]} 1-0


[Site "https://www.chess.com"]

[Event "Titled Tuesday Blitz August 22 Early 2023"]
[White "Cagara, Paulina"]
[Black "rikchessmx"]
[WhiteFideId "1124870"]
[WhiteElo "2127"]
[BlackElo "2390"]
[Result "1-0"]
[Round "3"]
[TimeControl "180+1"]
[Date "2023.08.22"]
[WhiteClock "0:00:41"]
[BlackClock "0:00:59"]
[Board "252"]

1. e4 {[%clk 0:03:00]}  c5 {[%clk 0:03:00]} 2. Nc3 {[%clk 0:03:00]}  e6 {[%clk 0:03:01]} 3. f4 {[%clk 0:02:59]}  a6 {[%clk 0:03:01]} 4. d3 {[%clk 0:02:59]}  b5 {[%clk 0:03:02]} 5. Nf3 {[%clk 0:02:59]}  Bb7 {[%clk 0:03:02]} 6. g3 {[%clk 0:02:58]}  b4 {[%clk 0:03:02]} 7. Nb1 {[%clk 0:02:57]}  Nf6 {[%clk 0:03:03]} 8. Bg2 {[%clk 0:02:57]}  h5 {[%clk 0:03:03]} 9. Nbd2 {[%clk 0:02:55]}  d5 {[%clk 0:03:02]} 10. e5 {[%clk 0:02:54]}  Ng4 {[%clk 0:03:01]} 11. Qe2 {[%clk 0:02:48]}  a5 {[%clk 0:02:59]} 12. a3 {[%clk 0:02:42]}  Nc6 {[%clk 0:02:57]} 13. axb4 {[%clk 0:02:41]}  Nxb4 {[%clk 0:02:53]} 14. Nf1 {[%clk 0:02:37]}  Ba6 {[%clk 0:02:49]} 15. Ne3 {[%clk 0:02:32]}  Nh6 {[%clk 0:02:43]} 16. Nh4 {[%clk 0:02:28]}  Be7 {[%clk 0:02:42]} 17. O-O {[%clk 0:02:25]}  Bxh4 {[%clk 0:02:41]} 18. gxh4 {[%clk 0:02:25]}  Qxh4 {[%clk 0:02:39]} 19. Bd2 {[%clk 0:02:19]}  Ng4 {[%clk 0:02:32]} 20. h3 {[%clk 0:02:18]}  Nxe3 {[%clk 0:02:30]} 21. Bxe3 {[%clk 0:02:18]}  c4 {[%clk 0:02:22]} 22. Rxa5 {[%clk 0:02:14]}  cxd3 {[%clk 0:02:19]} 23. cxd3 {[%clk 0:02:14]}  O-O {[%clk 0:02:15]} 24. Qf2 {[%clk 0:02:03]}  Bxd3 {[%clk 0:02:13]} 25. Qxh4 {[%clk 0:02:01]}  Rxa5 {[%clk 0:02:09]} 26. Rd1 {[%clk 0:01:55]}  Bg6 {[%clk 0:02:09]} 27. Bd2 {[%clk 0:01:50]}  Rb5 {[%clk 0:01:59]} 28. Qe7 {[%clk 0:01:47]}  Rfb8 {[%clk 0:01:58]} 29. Bf1 {[%clk 0:01:43]}  R5b7 {[%clk 0:01:57]} 30. Qg5 {[%clk 0:01:42]}  Nc6 {[%clk 0:01:51]} 31. b4 {[%clk 0:01:33]}  Nxb4 {[%clk 0:01:50]} 32. Bxb4 {[%clk 0:01:33]}  Rxb4 {[%clk 0:01:50]} 33. Rc1 {[%clk 0:01:32]}  Kh7 {[%clk 0:01:45]} 34. Be2 {[%clk 0:01:27]}  Rb3 {[%clk 0:01:37]} 35. Bxh5 {[%clk 0:01:15]}  Rxh3 {[%clk 0:01:34]} 36. Bxg6+ {[%clk 0:01:14]}  fxg6 {[%clk 0:01:34]} 37. Kg2 {[%clk 0:00:59]}  Ra3 {[%clk 0:01:30]} 38. Rh1+ {[%clk 0:00:56]}  Kg8 {[%clk 0:01:30]} 39. Rf1 {[%clk 0:00:47]}  Kf7 {[%clk 0:01:26]} 40. f5 {[%clk 0:00:43]}  gxf5 {[%clk 0:01:22]} 41. Qh5+ {[%clk 0:00:42]}  Kg8 {[%clk 0:01:21]} 42. Qg6 {[%clk 0:00:42]}  d4 {[%clk 0:00:59]} 43. Qxe6+ {[%clk 0:00:41]} 1-0


[Site "https://www.chess.com"]

[Event "Titled Tuesday Blitz August 22 Early 2023"]
[White "knightinshiningarmour16"]
[Black "Biregina"]
[WhiteElo "2125"]
[BlackElo "2389"]
[Result "0-1"]
[Round "3"]
[TimeControl "180+1"]
[Date "2023.08.22"]
[WhiteClock "0:01:23"]
[BlackClock "0:01:27"]
[Board "253"]

1. d4 {[%clk 0:03:00]}  c5 {[%clk 0:02:54]} 2. dxc5 {[%clk 0:02:54]}  e6 {[%clk 0:02:49]} 3. b4 {[%clk 0:02:50]}  a5 {[%clk 0:02:46]} 4. c3 {[%clk 0:02:50]}  axb4 {[%clk 0:02:39]} 5. cxb4 {[%clk 0:02:49]}  Qf6 {[%clk 0:02:40]} 6. Nc3 {[%clk 0:02:29]}  Qxc3+ {[%clk 0:02:37]} 7. Bd2 {[%clk 0:02:29]}  Qf6 {[%clk 0:02:29]} 8. Nf3 {[%clk 0:02:29]}  Nc6 {[%clk 0:02:27]} 9. e3 {[%clk 0:02:28]}  d6 {[%clk 0:02:25]} 10. b5 {[%clk 0:02:24]}  Ne5 {[%clk 0:02:21]} 11. cxd6 {[%clk 0:02:21]}  Nxf3+ {[%clk 0:02:18]} 12. gxf3 {[%clk 0:02:21]}  Bxd6 {[%clk 0:02:17]} 13. a4 {[%clk 0:02:21]}  Ne7 {[%clk 0:02:17]} 14. f4 {[%clk 0:02:12]}  O-O {[%clk 0:02:15]} 15. Bd3 {[%clk 0:02:11]}  Rd8 {[%clk 0:02:13]} 16. Qc2 {[%clk 0:02:08]}  Nf5 {[%clk 0:01:58]} 17. Bc3 {[%clk 0:02:05]}  e5 {[%clk 0:01:53]} 18. e4 {[%clk 0:01:57]}  Nd4 {[%clk 0:01:46]} 19. Bxd4 {[%clk 0:01:56]}  exd4 {[%clk 0:01:46]} 20. e5 {[%clk 0:01:56]}  Bb4+ {[%clk 0:01:44]} 21. Kf1 {[%clk 0:01:53]}  Bh3+ {[%clk 0:01:44]} 22. Ke2 {[%clk 0:01:51]}  Qxf4 {[%clk 0:01:44]} 23. Bxh7+ {[%clk 0:01:50]}  Kh8 {[%clk 0:01:43]} 24. Qd3 {[%clk 0:01:42]}  Qxe5+ {[%clk 0:01:37]} 25. Kd1 {[%clk 0:01:40]}  Bg4+ {[%clk 0:01:36]} 26. f3 {[%clk 0:01:34]}  Bxf3+ {[%clk 0:01:31]} 27. Qxf3 {[%clk 0:01:33]}  Kxh7 {[%clk 0:01:31]} 28. h4 {[%clk 0:01:31]}  Qe3 {[%clk 0:01:29]} 29. Qf5+ {[%clk 0:01:23]}  Kg8 {[%clk 0:01:27]} 0-1


[Site "https://www.chess.com"]

[Event "Titled Tuesday Blitz August 22 Early 2023"]
[White "Kozelov, Roman"]
[Black "Kula, Robert"]
[WhiteFideId "14133377"]
[BlackFideId "1101218"]
[WhiteElo "2377"]
[BlackElo "2117"]
[Result "1-0"]
[Round "3"]
[TimeControl "180+1"]
[Date "2023.08.22"]
[WhiteClock "0:00:20"]
[BlackClock "0:00:04"]
[Board "255"]

1. e4 {[%clk 0:02:56]}  e5 {[%clk 0:02:58]} 2. Nf3 {[%clk 0:02:56]}  Nc6 {[%clk 0:02:59]} 3. d4 {[%clk 0:02:55]}  exd4 {[%clk 0:02:59]} 4. Nxd4 {[%clk 0:02:55]}  Nf6 {[%clk 0:02:55]} 5. Nxc6 {[%clk 0:02:55]}  bxc6 {[%clk 0:02:55]} 6. Qe2 {[%clk 0:02:55]}  Be7 {[%clk 0:02:52]} 7. Nc3 {[%clk 0:02:53]}  O-O {[%clk 0:02:52]} 8. Bf4 {[%clk 0:02:49]}  d5 {[%clk 0:02:52]} 9. O-O-O {[%clk 0:02:48]}  Be6 {[%clk 0:02:50]} 10. f3 {[%clk 0:02:41]}  Bb4 {[%clk 0:02:43]} 11. Na4 {[%clk 0:02:36]}  Qe7 {[%clk 0:02:33]} 12. Qa6 {[%clk 0:02:34]}  dxe4 {[%clk 0:02:22]} 13. Qxc6 {[%clk 0:02:31]}  exf3 {[%clk 0:02:19]} 14. gxf3 {[%clk 0:02:30]}  Bxa2 {[%clk 0:02:11]} 15. Rg1 {[%clk 0:02:20]}  Rad8 {[%clk 0:01:59]} 16. Bd3 {[%clk 0:02:19]}  Bd5 {[%clk 0:01:53]} 17. Qxc7 {[%clk 0:02:09]}  Rd7 {[%clk 0:01:52]} 18. Qe5 {[%clk 0:01:55]}  Bxf3 {[%clk 0:01:42]} 19. Qxe7 {[%clk 0:01:49]}  Bxe7 {[%clk 0:01:41]} 20. Rdf1 {[%clk 0:01:44]}  Rxd3 {[%clk 0:01:29]} 21. cxd3 {[%clk 0:01:41]}  Rc8+ {[%clk 0:01:30]} 22. Nc3 {[%clk 0:01:40]}  Bh5 {[%clk 0:01:21]} 23. Kd2 {[%clk 0:01:32]}  Bg6 {[%clk 0:01:20]} 24. Re1 {[%clk 0:01:29]}  Bb4 {[%clk 0:01:18]} 25. Rg3 {[%clk 0:01:20]}  Nd5 {[%clk 0:01:08]} 26. Be5 {[%clk 0:01:20]}  f6 {[%clk 0:01:06]} 27. Bd4 {[%clk 0:01:19]}  a5 {[%clk 0:01:03]} 28. Re6 {[%clk 0:01:05]}  Nf4 {[%clk 0:01:00]} 29. Ra6 {[%clk 0:01:03]}  Rd8 {[%clk 0:00:58]} 30. Ke3 {[%clk 0:00:55]}  Nxd3 {[%clk 0:00:49]} 31. Rxg6 {[%clk 0:00:54]}  Nc5 {[%clk 0:00:45]} 32. Rc6 {[%clk 0:00:51]}  Re8+ {[%clk 0:00:37]} 33. Kf3 {[%clk 0:00:51]}  Ne6 {[%clk 0:00:36]} 34. Rxe6 {[%clk 0:00:45]}  Rxe6 {[%clk 0:00:35]} 35. Rg4 {[%clk 0:00:46]}  Kf7 {[%clk 0:00:34]} 36. Nd5 {[%clk 0:00:44]}  Bf8 {[%clk 0:00:30]} 37. Re4 {[%clk 0:00:42]}  Rd6 {[%clk 0:00:29]} 38. Nc3 {[%clk 0:00:34]}  Rc6 {[%clk 0:00:29]} 39. Be3 {[%clk 0:00:30]}  h6 {[%clk 0:00:28]} 40. Rd4 {[%clk 0:00:27]}  Rc7 {[%clk 0:00:27]} 41. Rd8 {[%clk 0:00:27]}  Be7 {[%clk 0:00:26]} 42. Ra8 {[%clk 0:00:26]}  Rb7 {[%clk 0:00:21]} 43. Nd5 {[%clk 0:00:20]}  Bb4 {[%clk 0:00:17]} 44. Ra7 {[%clk 0:00:16]}  Rxa7 {[%clk 0:00:14]} 45. Bxa7 {[%clk 0:00:17]}  Bd2 {[%clk 0:00:14]} 46. Bb6 {[%clk 0:00:16]}  a4 {[%clk 0:00:13]} 47. Bd4 {[%clk 0:00:15]}  Ke6 {[%clk 0:00:13]} 48. Ne3 {[%clk 0:00:14]}  g5 {[%clk 0:00:11]} 49. Ke4 {[%clk 0:00:14]}  Bb4 {[%clk 0:00:08]} 50. Nf5 {[%clk 0:00:14]}  h5 {[%clk 0:00:07]} 51. Ng7+ {[%clk 0:00:14]}  Kf7 {[%clk 0:00:06]} 52. Nxh5 {[%clk 0:00:15]}  a3 {[%clk 0:00:06]} 53. bxa3 {[%clk 0:00:14]}  Bxa3 {[%clk 0:00:06]} 54. Nxf6 {[%clk 0:00:14]}  Bd6 {[%clk 0:00:05]} 55. Ng4 {[%clk 0:00:14]}  Kg6 {[%clk 0:00:05]} 56. h3 {[%clk 0:00:14]}  Kh5 {[%clk 0:00:05]} 57. Kf3 {[%clk 0:00:14]}  Kh4 {[%clk 0:00:04]} 58. Kg2 {[%clk 0:00:15]}  Bg3 {[%clk 0:00:03]} 59. Bf2 {[%clk 0:00:14]}  Bxf2 {[%clk 0:00:02]} 60. Nxf2 {[%clk 0:00:15]}  Kh5 {[%clk 0:00:01]} 61. Kg3 {[%clk 0:00:15]}  Kg6 {[%clk 0:00:02]} 62. Kg4 {[%clk 0:00:16]}  Kh6 {[%clk 0:00:03]} 63. Ne4 {[%clk 0:00:16]}  Kg6 {[%clk 0:00:04]} 64. Nxg5 {[%clk 0:00:16]}  Kh6 {[%clk 0:00:05]} 65. h4 {[%clk 0:00:17]}  Kg6 {[%clk 0:00:06]} 66. h5+ {[%clk 0:00:17]}  Kh6 {[%clk 0:00:07]} 67. Ne6 {[%clk 0:00:17]}  Kh7 {[%clk 0:00:07]} 68. Kg5 {[%clk 0:00:18]}  Kg8 {[%clk 0:00:06]} 69. Kg6 {[%clk 0:00:18]}  Kh8 {[%clk 0:00:06]} 70. Nd8 {[%clk 0:00:18]}  Kg8 {[%clk 0:00:06]} 71. Nf7 {[%clk 0:00:19]}  Kf8 {[%clk 0:00:04]} 72. h6 {[%clk 0:00:19]}  Ke7 {[%clk 0:00:05]} 73. h7 {[%clk 0:00:20]}  Ke6 {[%clk 0:00:06]} 74. h8=Q {[%clk 0:00:20]}  Kd5 {[%clk 0:00:04]} 75. Qe5+ {[%clk 0:00:20]} 1-0


[Site "https://www.chess.com"]